bitfinex/quotes_SOLUSD_20220302
["timestamp","ask_amount","ask_price","bid_price","bid_amount"]
[1646253929757,55.09005784,100.74,100.65,26.6467]
[1646253929957,55.09005784,100.74,100.65,22.6757]
[1646253930159,0.11079397,100.73,100.65,36.9657]
[1646253930659,6.11079397,100.73,100.65,36.9657]
[1646253930856,50.00572585,100.72,100.65,36.9657]
[1646253931057,50.00572585,100.72,100.65,37.2157]
[1646253931256,50.25572585,100.72,100.65,37.2157]
[1646253931458,50.25572585,100.72,100.65,41.9657]
[1646253931658,50.25572585,100.72,100.63,18.8796]
[1646253931859,58.44431653,100.7,100.63,29.1976]
[1646253932059,58.69431653,100.7,100.63,29.1976]
[1646253932860,58.69431653,100.7,100.63,29.4476]
[1646253933059,58.69431653,100.7,100.63,14.54]
[1646253933658,58.69431653,100.7,100.63,19.54]
[1646253937660,58.69431653,100.7,100.63,14.54]
[1646253938062,58.69431653,100.7,100.63,0.25]
[1646253938261,58.69431653,100.7,100.62,0.25]
[1646253938262,60.22160423,100.7,100.62,0.25]
[1646253938464,24.1792,100.69,100.61,24.3452]
[1646253938662,24.4292,100.69,100.61,24.3452]
[1646253938863,28.4032,100.69,100.61,24.3452]
[1646253939060,28.4032,100.69,100.61,29.3452]
[1646253940863,24.4292,100.69,100.61,29.3452]
[1646253941265,24.4292,100.69,100.61,0.25]
[1646253941464,24.4292,100.69,100.61,5.0]
[1646253941687,24.4292,100.69,100.61,5.25]
[1646253942991,24.4292,100.69,100.61,0.25]
[1646253943189,24.4292,100.69,100.6,68.3889]
[1646253943388,6.0,100.68,100.6,68.3889]
[1646253943589,6.25,100.68,100.6,73.3889]
[1646253946693,0.25,100.68,100.6,73.3889]
[1646253946894,39.3422,100.69,100.6,73.3889]
[1646253947095,6.0,100.68,100.6,58.7988]
[1646253947297,6.25,100.68,100.6,43.8879]
[1646253947495,6.25,100.68,100.6,38.8879]
[1646253947795,27.52321921,100.68,100.6,0.25]
[1646253947994,44.34759655,100.66,100.58,8.974]
[1646253948194,0.18745269,100.65,100.57,23.1975]
[1646253948397,56.09973296,100.64,100.57,23.1975]
[1646253948595,56.34973296,100.64,100.57,23.1975]
[1646253950099,56.09973296,100.64,100.57,37.7375]
[1646253950298,56.09973296,100.64,100.57,40.28654003]
[1646253950698,56.09973296,100.64,100.57,45.28654003]
[1646253951098,56.09973296,100.64,100.57,60.20294003]
[1646253951298,56.09973296,100.64,100.57,55.20294003]
[1646253951598,56.09973296,100.64,100.58,5.0]
[1646253951800,56.09973296,100.64,100.58,5.25]
[1646253952199,56.09973296,100.64,100.58,0.25]
[1646253952998,56.09973296,100.64,100.57,52.6539]
[1646253953503,56.34973296,100.64,100.57,52.6539]
[1646253954201,56.34973296,100.64,100.57,37.7375]
[1646253954800,56.34973296,100.64,100.57,23.4475]
[1646253957002,56.09973296,100.64,100.57,23.4475]
[1646253958202,56.09973296,100.64,100.57,37.7375]
[1646253959103,56.09973296,100.64,100.57,52.6537]
[1646253959503,56.34973296,100.64,100.57,52.6537]
[1646253959702,56.09973296,100.64,100.57,52.6537]
[1646253962004,56.34973296,100.64,100.57,52.6537]
[1646253965608,0.29258897,100.63,100.57,52.6537]
[1646253967208,56.34973296,100.64,100.57,52.6537]
[1646253967808,56.34973296,100.64,100.57,23.4475]
[1646253968010,0.29091203,100.63,100.57,23.4475]
[1646253968210,6.0,100.63,100.57,0.25]
[1646253968412,51.42382136,100.62,100.56,15.0927]
[1646253968711,51.67382136,100.62,100.56,15.0927]
[1646253972311,51.67382136,100.62,100.55,3.975]
[1646253972714,55.64982136,100.62,100.55,3.975]
[1646253973113,138.07739612,100.62,100.55,3.975]
[1646253973313,0.11087305,100.61,100.55,3.975]
[1646253973514,14.9264,100.6,100.51,46.8358]
[1646253973715,57.26788093,100.59,100.51,46.8358]
[1646253974013,57.51788093,100.59,100.51,46.8358]
[1646253974214,44.45410972,100.57,100.49,14.29]
[1646253974418,44.70410972,100.57,100.49,14.29]
[1646253975616,44.70410972,100.57,100.49,0.25]
[1646253975815,60.87105244,100.57,100.48,39.4677]
[1646253976217,60.6232249,100.55,100.48,39.4677]
[1646253976415,60.8732249,100.55,100.47,3.978]
[1646253976615,60.8732249,100.55,100.46,14.9318]
[1646253976815,22.5463,100.54,100.45,33.104]
[1646253977017,45.44143652,100.53,100.45,18.269]
[1646253977219,45.69143652,100.53,100.46,5.0]
[1646253977616,107.02713416,100.53,100.46,5.0]
[1646253978218,107.02713416,100.53,100.45,3.979]
[1646253978616,107.02713416,100.53,100.45,0.25]
[1646253978816,107.02713416,100.53,100.44,24.1646]
[1646253979017,107.02713416,100.53,100.44,20.1846]
[1646253979219,206.17713416,100.53,100.44,20.1846]
[1646253979521,107.02713416,100.53,100.44,20.1846]
[1646253979718,206.17713416,100.53,100.44,20.1846]
[1646253980121,67.12159026,100.52,100.44,20.1846]
[1646253980320,45.75721196,100.51,100.44,20.1846]
[1646253980522,45.75721196,100.51,100.44,5.25]
[1646253981019,45.75721196,100.51,100.44,5.0]
[1646253981322,105.45721196,100.51,100.43,3.98]
[1646253981522,107.46348777,100.51,100.42,3.981]
[1646253981726,48.57409294,100.49,100.43,5.0]
[1646253981921,48.82409294,100.49,100.43,5.0]
[1646253982122,108.27409294,100.49,100.43,5.0]
[1646253982320,209.42575542,100.49,100.39,3.981]
[1646253982520,148.50885542,100.49,100.39,3.981]
[1646253982723,115.35899345,100.47,100.38,3.982]
[1646253982944,140.55354682,100.47,100.4,5.0]
[1646253983545,140.55354682,100.47,100.36,3.982]
[1646253984144,155.50124682,100.47,100.36,33.2186]
[1646253984747,138.77749345,100.47,100.36,33.2186]
[1646253985245,252.87519345,100.47,100.36,18.272]
[1646253985448,3.983,100.46,100.35,48.0692]
[1646253985648,110.12983096,100.45,100.38,5.0]
[1646253985847,112.2999238,100.45,100.35,52.0522]
[1646253986050,112.2999238,100.45,100.35,48.0692]
[1646253986051,54.52218392,100.43,100.35,48.0692]
[1646253986248,54.77218392,100.43,100.35,80.20889744]
[1646253986449,54.77218392,100.43,100.35,97.70703747]
[1646253986649,23.1849,100.44,100.36,3.984]
[1646253986850,23.1849,100.44,100.37,14.29]
[1646253987049,23.1849,100.44,100.37,16.83904003]
[1646253987252,23.1849,100.44,100.38,2.54904003]
[1646253987452,3.984,100.48,100.38,2.79904003]
[1646253987649,3.984,100.48,100.42,5.0]
[1646253987650,50.1632014,100.48,100.42,5.0]
[1646253987852,90.0,100.47,100.39,2.54904003]
[1646253988049,51.34301018,100.45,100.38,17.84969744]
[1646253988249,51.34301018,100.45,100.34,47.653]
[1646253988651,52.50515763,100.43,100.34,47.653]
[1646253988850,52.50515763,100.43,100.36,14.9462]
[1646253989250,29.8307,100.46,100.37,3.984]
[1646253989453,29.8307,100.46,100.37,130.438347]
[1646253989651,29.8307,100.46,100.37,130.688347]
[1646253989855,29.8307,100.46,100.37,149.56098057]
[1646253990152,59.53470496,100.45,100.37,149.56098057]
[1646253990353,59.53470496,100.45,100.39,14.9408]
[1646253990550,6.0,100.46,100.39,19.1738]
[1646253990751,51.8631,100.49,100.39,19.1738]
[1646253990954,6.0,100.48,100.39,33.4638]
[1646253991554,52.29504104,100.47,100.39,33.4638]
[1646253991752,52.29504104,100.47,100.42,5.0]
[1646253991953,52.29504104,100.47,100.42,5.25]
[1646253992151,52.29504104,100.47,100.42,0.25]
[1646253992354,52.29504104,100.47,100.4,14.9405]
[1646253992552,51.8631,100.49,100.42,5.0]
[1646253992954,3.981,100.52,100.43,2.54904003]
[1646253993154,50.726,100.54,100.43,20.82004003]
[1646253993554,59.86703598,100.53,100.44,2.54904003]
[1646253993755,59.86703598,100.53,100.46,5.0]
[1646253993955,59.86703598,100.53,100.46,5.25]
[1646253995556,60.11703598,100.53,100.46,5.25]
[1646253995855,60.11703598,100.53,100.46,0.25]
[1646253996056,60.11703598,100.53,100.47,5.0]
[1646253996256,60.11703598,100.53,100.47,5.25]
[1646253997256,60.11703598,100.53,100.47,0.25]
[1646253997462,60.11703598,100.53,100.47,5.0]
[1646253997658,60.11703598,100.53,100.47,0.25]
[1646253997859,60.11703598,100.53,100.48,5.0]
[1646253998058,64.09603598,100.53,100.48,5.25]
[1646253998659,60.11703598,100.53,100.48,5.25]
[1646253999160,60.11703598,100.53,100.48,5.22579955]
[1646253999361,60.11703598,100.53,100.48,0.25]
[1646253999562,64.09603598,100.53,100.46,0.25]
[1646253999765,64.09603598,100.53,100.46,4.96]
[1646253999963,64.09603598,100.53,100.46,5.21]
[1646254000362,64.09603598,100.53,100.45,14.9329]
[1646254000562,55.00397987,100.51,100.43,14.9358]
[1646254000764,55.25397987,100.51,100.44,3.981]
[1646254002566,55.25397987,100.51,100.44,4.231]
[1646254004464,55.00397987,100.51,100.45,99.15]
[1646254004665,3.98,100.56,100.45,2.79904003]
[1646254004865,3.98,100.56,100.46,16.83904003]
[1646254005070,3.98,100.56,100.46,17.73074003]
[1646254005366,3.98,100.56,100.46,0.25]
[1646254005568,111.59642452,100.55,100.46,0.25]
[1646254005765,3.979,100.54,100.46,0.25]
[1646254005966,54.0057828,100.53,100.46,0.25]
[1646254006164,44.75510795,100.51,100.44,2.79904003]
[1646254006363,45.00510795,100.51,100.44,2.79904003]
[1646254006567,45.00510795,100.51,100.45,4.96]
[1646254006763,45.00510795,100.51,100.45,5.21]
[1646254006963,45.00510795,100.51,100.45,20.1437]
[1646254007564,45.00510795,100.51,100.45,15.1837]
[1646254008164,45.00510795,100.51,100.45,20.1437]
[1646254008364,45.00510795,100.51,100.45,15.1837]
[1646254008764,3.979,100.54,100.45,20.1437]
[1646254008964,0.25,100.54,100.45,32.02274003]
[1646254009167,6.0,100.56,100.45,32.02274003]
[1646254009366,6.0,100.56,100.45,45.94708703]
[1646254009565,6.0,100.56,100.48,4.96]
[1646254009766,44.41760507,100.55,100.48,20.1386]
[1646254009967,44.41760507,100.55,100.48,22.68764003]
[1646254010567,44.66760507,100.55,100.48,22.68764003]
[1646254010768,44.66760507,100.55,100.48,17.72764003]
[1646254010969,52.0033,100.57,100.48,32.01764003]
[1646254011269,48.0233,100.57,100.48,45.94198703]
[1646254011470,48.0233,100.57,100.51,14.9254]
[1646254011669,48.0233,100.57,100.51,15.1754]
[1646254011869,48.09749333,100.56,100.51,20.1354]
[1646254012068,48.34749333,100.56,100.51,20.1354]
[1646254012668,48.34749333,100.56,100.51,5.21]
[1646254013270,48.34749333,100.56,100.51,0.25]
[1646254013469,48.34749333,100.56,100.49,15.1771]
[1646254013869,48.34749333,100.56,100.49,20.1371]
[1646254015671,48.34749333,100.56,100.49,5.21]
[1646254015870,161.24749333,100.56,100.49,4.96]
[1646254016070,56.0914306,100.54,100.49,4.96]
[1646254016271,56.3414306,100.54,100.49,4.96]
[1646254017074,56.3414306,100.54,100.49,0.25]
[1646254017275,56.3414306,100.54,100.48,23.0739]
[1646254017477,56.3414306,100.54,100.48,0.25]
[1646254017674,56.3414306,100.54,100.47,5.21]
[1646254019978,59.30746379,100.52,100.47,5.21]
[1646254020181,59.55746379,100.52,100.47,5.21]
[1646254020781,59.55746379,100.52,100.47,0.25]
[1646254020982,59.55746379,100.52,100.47,4.96]
[1646254021280,59.55746379,100.52,100.47,5.21]
[1646254021479,59.55746379,100.52,100.47,0.25]
[1646254021880,119.00746379,100.52,100.45,4.96]
[1646254022181,42.87540703,100.5,100.41,38.8944]
[1646254022379,67.79610703,100.5,100.41,38.8944]
[1646254022679,71.77710703,100.5,100.41,24.6044]
[1646254023083,71.77710703,100.5,100.41,47.5264]
[1646254023484,71.77710703,100.5,100.41,52.4864]
[1646254023684,71.77710703,100.5,100.41,55.28544003]
[1646254023885,71.77710703,100.5,100.41,64.61544003]
[1646254023886,67.79610703,100.5,100.41,64.61544003]
[1646254024086,71.77710703,100.5,100.41,64.61544003]
[1646254025105,71.77710703,100.5,100.43,4.96]
[1646254025305,71.77710703,100.5,100.43,5.21]
[1646254026206,132.99802318,100.5,100.43,4.96]
[1646254026407,134.79891706,100.5,100.4,2.54904003]
[1646254026607,233.94891706,100.5,100.4,4.96]
[1646254026810,166.26437154,100.49,100.39,14.9421]
[1646254027011,61.25182516,100.47,100.37,24.7741]
[1646254027208,110.01784794,100.46,100.37,24.7741]
[1646254027408,114.25084794,100.46,100.37,24.7741]
[1646254027809,215.20174182,100.46,100.37,4.96]
[1646254028311,116.05174182,100.46,100.37,4.96]
[1646254028514,116.05174182,100.46,100.35,38.7893]
[1646254029113,116.05174182,100.46,100.37,4.96]
[1646254029715,116.05174182,100.46,100.35,14.948]
[1646254029914,116.05174182,100.46,100.36,4.96]
[1646254030114,116.05174182,100.46,100.35,14.948]
[1646254030514,56.02158401,100.44,100.36,4.96]
[1646254030716,46.80376751,100.42,100.36,4.96]
[1646254030914,47.05376751,100.42,100.36,4.96]
[1646254031518,47.05376751,100.42,100.35,14.948]
[1646254031715,47.05376751,100.42,100.36,4.96]
[1646254032515,47.05376751,100.42,100.35,15.198]
[1646254032716,47.05376751,100.42,100.36,4.96]
[1646254033820,46.80376751,100.42,100.36,4.96]
[1646254034017,46.80376751,100.42,100.36,5.21]
[1646254034316,46.80376751,100.42,100.36,0.25]
[1646254034519,46.80376751,100.42,100.36,5.21]
[1646254034920,46.80376751,100.42,100.36,0.25]
[1646254035119,47.05376751,100.42,100.33,14.54]
[1646254035319,47.05376751,100.42,100.36,4.96]
[1646254035520,47.05376751,100.42,100.36,5.21]
[1646254035922,47.05376751,100.42,100.36,0.25]
[1646254036120,47.05376751,100.42,100.36,5.21]
[1646254037018,47.05376751,100.42,100.36,0.25]
[1646254037219,47.05376751,100.42,100.36,4.96]
[1646254037419,47.05376751,100.42,100.36,5.21]
[1646254037619,46.80376751,100.42,100.36,5.21]
[1646254037819,46.80376751,100.42,100.36,20.1574]
[1646254038221,3.984,100.47,100.37,0.26661235]
[1646254038421,6.0,100.46,100.38,14.29]
[1646254038719,6.0,100.46,100.38,17.08904003]
[1646254038923,6.0,100.46,100.39,2.54904003]
[1646254039219,49.60907163,100.45,100.39,2.79904003]
[1646254039618,49.60907163,100.45,100.39,17.74124003]
[1646254039819,49.60907163,100.45,100.39,2.79904003]
[1646254040021,49.60907163,100.45,100.39,4.96]
[1646254040221,49.85907163,100.45,100.39,4.96]
[1646254040619,49.85907163,100.45,100.39,5.21]
[1646254040823,49.85907163,100.45,100.39,0.25]
[1646254041221,49.60907163,100.45,100.39,0.25]
[1646254041425,49.60907163,100.45,100.4,4.96]
[1646254041620,49.60907163,100.45,100.4,5.21]
[1646254042225,49.60907163,100.45,100.4,20.1515]
[1646254042424,49.60907163,100.45,100.4,32.03054003]
[1646254043425,49.60907163,100.45,100.41,4.96]
[1646254043624,49.60907163,100.45,100.41,15.1894]
[1646254044425,49.60907163,100.45,100.41,20.1494]
[1646254044827,49.60907163,100.45,100.41,15.1894]
[1646254045025,49.60907163,100.45,100.41,17.73844003]
[1646254045425,49.60907163,100.45,100.41,22.69844003]
[1646254045627,22.5984,100.47,100.41,22.69844003]
[1646254045628,22.5984,100.47,100.41,17.73844003]
[1646254045829,22.5984,100.47,100.42,4.96]
[1646254046026,22.5984,100.47,100.42,20.1487]
[1646254046228,22.5984,100.47,100.42,15.1887]
[1646254046427,22.5984,100.47,100.43,4.96]
[1646254046632,47.57536484,100.46,100.43,5.21]
[1646254046931,47.57536484,100.46,100.43,0.25]
[1646254047428,47.57536484,100.46,100.43,5.21]
[1646254047628,47.57536484,100.46,100.43,4.96]
[1646254048728,47.57536484,100.46,100.4,14.9405]
[1646254049028,47.57536484,100.46,100.4,15.1905]
[1646254049239,47.57536484,100.46,100.41,4.96]
[1646254049430,47.57536484,100.46,100.41,5.21]
[1646254050231,47.57536484,100.46,100.41,15.1899]
[1646254050628,47.57536484,100.46,100.41,20.1499]
[1646254050830,47.57536484,100.46,100.41,17.73894003]
[1646254051232,47.57536484,100.46,100.41,131.17894003]
[1646254051431,47.57536484,100.46,100.43,14.9361]
[1646254051632,47.57536484,100.46,100.43,0.25]
[1646254051833,47.57536484,100.46,100.44,0.31958265]
[1646254057842,47.57536484,100.46,100.41,7.50904003]
[1646254058062,47.57536484,100.46,100.41,4.96]
[1646254058462,47.57536484,100.46,100.38,16.83904003]
[1646254058663,47.57536484,100.46,100.41,4.96]
[1646254059064,47.57536484,100.46,100.41,5.21]
[1646254061665,47.57536484,100.46,100.41,0.25]
[1646254061867,47.57536484,100.46,100.39,15.1921]
[1646254062066,47.57536484,100.46,100.39,20.1521]
[1646254062267,47.57536484,100.46,100.39,15.1921]
[1646254062470,47.57536484,100.46,100.4,4.96]
[1646254062668,47.57536484,100.46,100.4,5.21]
[1646254063871,47.57536484,100.46,100.4,0.25]
[1646254064072,47.57536484,100.46,100.39,15.1921]
[1646254064472,47.57536484,100.46,100.39,17.74114003]
[1646254065674,47.57536484,100.46,100.39,22.70114003]
[1646254065873,47.57536484,100.46,100.39,17.74114003]
[1646254066076,47.57536484,100.46,100.39,32.03114003]
[1646254066474,47.57536484,100.46,100.4,4.96]
[1646254066673,47.57536484,100.46,100.41,14.9392]
[1646254066874,47.57536484,100.46,100.41,17.73824003]
[1646254068375,47.57536484,100.46,100.41,22.69824003]
[1646254071379,47.57536484,100.46,100.41,20.1492]
[1646254071780,47.57536484,100.46,100.41,5.21]
[1646254073080,47.57536484,100.46,100.41,0.25]
[1646254073280,47.57536484,100.46,100.41,4.96]
[1646254073580,47.57536484,100.46,100.41,0.25]
[1646254073879,47.57536484,100.46,100.41,5.21]
[1646254075080,47.57536484,100.46,100.41,20.1498]
[1646254076080,47.0456,100.49,100.41,20.1498]
[1646254076281,47.2956,100.49,100.41,20.1498]
[1646254076481,47.2956,100.49,100.41,15.1898]
[1646254076683,47.2956,100.49,100.42,4.96]
[1646254076881,47.2956,100.49,100.42,5.21]
[1646254077082,45.17059133,100.48,100.42,5.21]
[1646254078382,47.0456,100.49,100.42,20.1484]
[1646254078682,47.0456,100.49,100.43,14.29]
[1646254078883,47.0456,100.49,100.43,14.54]
[1646254079081,47.0456,100.49,100.43,17.08904003]
[1646254079482,53.86376814,100.48,100.43,17.08904003]
[1646254079682,53.86376814,100.48,100.44,19.895]
[1646254079882,53.86376814,100.48,100.44,20.145]
[1646254080789,53.86376814,100.48,100.44,15.185]
[1646254080985,53.86376814,100.48,100.44,20.145]
[1646254085213,53.86376814,100.48,100.44,5.21]
[1646254086216,53.86376814,100.48,100.42,14.9375]
[1646254086414,53.86376814,100.48,100.41,22.808]
[1646254086616,53.86376814,100.48,100.41,27.768]
[1646254087317,53.86376814,100.48,100.41,22.808]
[1646254087516,53.86376814,100.48,100.41,27.768]
[1646254087921,53.86376814,100.48,100.41,22.808]
[1646254088319,53.86376814,100.48,100.42,4.96]
[1646254088718,53.86376814,100.48,100.42,5.21]
[1646254089219,53.86376814,100.48,100.42,0.25]
[1646254089421,53.86376814,100.48,100.42,19.8986]
[1646254089618,53.86376814,100.48,100.42,32.02764003]
[1646254091119,53.86376814,100.48,100.42,17.48764003]
[1646254091324,53.86376814,100.48,100.41,22.808]
[1646254092723,53.86376814,100.48,100.41,23.058]
[1646254092927,53.86376814,100.48,100.4,2.54904003]
[1646254093125,31.71276423,100.47,100.39,14.9421]
[1646254093326,53.44875473,100.46,100.38,14.8849]
[1646254093722,53.44875473,100.46,100.39,19.91309398]
[1646254094524,53.44875473,100.46,100.39,20.16309398]
[1646254094924,53.44875473,100.46,100.39,0.25]
[1646254095127,53.44875473,100.46,100.38,0.25]
[1646254095327,53.44875473,100.46,100.37,47.7797]
[1646254095726,53.44875473,100.46,100.38,19.93059388]
[1646254095928,53.44875473,100.46,100.38,20.18059388]
[1646254096128,57.43175473,100.46,100.38,20.18059388]
[1646254096325,57.43175473,100.46,100.38,19.93059388]
[1646254096528,57.68175473,100.46,100.37,47.5297]
[1646254096927,57.68175473,100.46,100.38,19.9421]
[1646254097128,57.68175473,100.46,100.38,24.9421]
[1646254097329,57.68175473,100.46,100.38,19.9421]
[1646254097530,57.43175473,100.46,100.38,24.9421]
[1646254097728,53.44875473,100.46,100.38,25.1921]
[1646254098128,53.44875473,100.46,100.39,19.9421]
[1646254098329,53.44875473,100.46,100.39,35.134]
[1646254098929,53.69875473,100.46,100.39,0.25]
[1646254099635,53.69875473,100.46,100.38,5.25]
[1646254099931,23.7626,100.47,100.38,20.1941]
[1646254100131,23.3971,100.49,100.4,2.54904003]
[1646254100331,23.3971,100.49,100.41,14.52485355]
[1646254100332,47.0178,100.49,100.41,14.52485355]
[1646254100533,47.0178,100.49,100.41,113.92485355]
[1646254100732,47.0178,100.49,100.42,2.54904003]
[1646254100935,55.95149372,100.48,100.43,14.29]
[1646254101134,55.95149372,100.48,100.44,14.9353]
[1646254101333,55.95149372,100.48,100.44,15.1853]
[1646254103233,48.1779,100.51,100.44,29.4753]
[1646254103433,48.1779,100.51,100.44,32.02434003]
[1646254104333,48.75133321,100.5,100.45,3.981]
[1646254104532,48.75133321,100.5,100.46,14.9323]
[1646254104734,48.75133321,100.5,100.46,15.1823]
[1646254105034,48.75133321,100.5,100.46,20.1823]
[1646254105834,48.75133321,100.5,100.46,15.1823]
[1646254108335,48.75133321,100.5,100.44,31.77384003]
[1646254108535,48.75133321,100.5,100.44,29.2248]
[1646254108735,48.75133321,100.5,100.44,34.2248]
[1646254108940,48.75133321,100.5,100.44,19.29]
[1646254109938,48.75133321,100.5,100.44,19.54]
[1646254110538,48.75133321,100.5,100.44,37.02454003]
[1646254110840,112.9,100.53,100.44,136.17454003]
[1646254111042,112.9,100.53,100.46,99.15]
[1646254111239,112.9,100.53,100.47,14.29]
[1646254111542,112.9,100.53,100.47,21.06904003]
[1646254111741,48.76373768,100.52,100.47,17.08904003]
[1646254112340,48.76373768,100.52,100.47,22.08904003]
[1646254113139,48.76373768,100.52,100.48,14.9265]
[1646254113341,48.76373768,100.52,100.48,15.1765]
[1646254113541,48.76373768,100.52,100.48,29.4665]
[1646254114542,48.76373768,100.52,100.48,29.2165]
[1646254115342,48.76373768,100.52,100.48,14.9265]
[1646254115943,48.76373768,100.52,100.48,15.1765]
[1646254116944,48.76373768,100.52,100.48,29.4665]
[1646254117348,158.6,100.49,100.45,2.54904003]
[1646254117547,6.51200333,100.48,100.36,25.45767922]
[1646254117747,6.76200333,100.48,100.36,124.60767922]
[1646254117968,54.12556337,100.48,100.36,14.9437]
[1646254118168,11.54548739,100.47,100.34,14.29]
[1646254118367,72.95455975,100.47,100.34,14.29]
[1646254118567,61.43983363,100.45,100.34,14.29]
[1646254118867,60.60711598,100.44,100.37,5.0]
[1646254119270,60.60711598,100.44,100.38,3.983]
[1646254119467,60.60711598,100.44,100.38,5.0]
[1646254119767,60.60711598,100.44,100.38,5.25]
[1646254120370,46.0418,100.46,100.38,15.1911]
[1646254120569,46.0418,100.46,100.39,5.0]
[1646254120868,46.0418,100.46,100.39,5.25]
[1646254121469,56.36315467,100.45,100.39,5.25]
[1646254122969,56.36315467,100.45,100.39,0.25]
[1646254123169,56.36315467,100.45,100.39,5.0]
[1646254123368,56.36315467,100.45,100.39,5.25]
[1646254124370,56.36315467,100.45,100.39,0.25]
[1646254124572,56.61315467,100.45,100.35,14.54]
[1646254124871,71.55985467,100.45,100.37,5.0]
[1646254125068,71.55985467,100.45,100.37,0.25]
[1646254125270,71.55985467,100.45,100.37,5.25]
[1646254127182,56.36315467,100.45,100.37,20.1949]
[1646254127378,56.36315467,100.45,100.37,15.1949]
[1646254127777,60.34615467,100.45,100.38,5.0]
[1646254127979,60.34615467,100.45,100.38,0.25]
[1646254128578,60.34615467,100.45,100.38,5.25]
[1646254129077,60.34615467,100.45,100.38,20.1925]
[1646254130479,56.36315467,100.45,100.38,20.1925]
[1646254130682,56.61315467,100.45,100.38,0.25]
[1646254130882,70.90315467,100.45,100.36,0.25]
[1646254131080,60.1434122,100.43,100.36,5.0]
[1646254131280,60.1434122,100.43,100.36,5.25]
[1646254131482,60.1434122,100.43,100.36,0.25]
[1646254131884,60.1434122,100.43,100.36,5.25]
[1646254132082,60.3934122,100.43,100.36,20.196]
[1646254132286,60.1434122,100.43,100.36,15.196]
[1646254132481,60.1434122,100.43,100.36,20.196]
[1646254133281,59.9934122,100.43,100.36,20.196]
[1646254135283,59.9934122,100.43,100.37,5.0]
[1646254135482,22.6064,100.46,100.38,14.9432]
[1646254135685,22.6064,100.46,100.38,15.1932]
[1646254136287,22.6064,100.46,100.38,20.1932]
[1646254136487,56.08882453,100.45,100.38,20.1932]
[1646254136988,56.33882453,100.45,100.38,15.1932]
[1646254137189,56.33882453,100.45,100.38,20.1932]
[1646254137396,56.33882453,100.45,100.38,15.1932]
[1646254137590,56.33882453,100.45,100.38,20.1932]
[1646254138892,0.10564378,100.44,100.38,15.1932]
[1646254139092,56.33882453,100.45,100.38,20.1932]
[1646254140193,56.33882453,100.45,100.38,34.9504]
[1646254141493,0.20924346,100.44,100.38,34.9504]
[1646254141695,56.33882453,100.45,100.38,20.1932]
[1646254144396,0.51200333,100.44,100.38,20.1932]
[1646254144797,56.33882453,100.45,100.38,20.1932]
[1646254144999,56.33882453,100.45,100.38,15.1932]
[1646254145197,56.33882453,100.45,100.38,20.1932]
[1646254146398,51.8416,100.46,100.38,20.1932]
[1646254146600,22.6064,100.46,100.38,114.3432]
[1646254146799,22.6064,100.46,100.39,5.0]
[1646254146999,22.6064,100.46,100.41,14.9384]
[1646254147200,22.6064,100.46,100.41,15.1884]
[1646254148100,112.9,100.48,100.41,15.1884]
[1646254148503,112.9,100.48,100.43,5.0]
[1646254148701,112.9,100.48,100.43,5.25]
[1646254148901,112.9,100.48,100.43,20.1866]
[1646254150105,48.52412066,100.47,100.43,20.1866]
[1646254150303,48.52412066,100.47,100.43,15.1866]
[1646254150510,48.52412066,100.47,100.43,20.1866]
[1646254150703,112.9,100.48,100.43,20.1866]
[1646254151105,188.0,100.53,100.43,119.3366]
[1646254151307,188.0,100.53,100.43,114.3366]
[1646254151732,45.67845292,100.52,100.43,114.3366]
[1646254151903,70.50765292,100.52,100.45,5.0]
[1646254152104,70.50765292,100.52,100.46,14.9322]
[1646254152303,70.50765292,100.52,100.46,15.1822]
[1646254152505,70.75765292,100.52,100.4,14.29]
[1646254152705,72.62759942,100.52,100.4,14.29]
[1646254152904,76.60859942,100.52,100.4,14.29]